fUSD/lending_fUSD_20240213
["ID","MTS","AMOUNT","RATE_DAILY","PERIOD"]
[313911471,1707813052440,-300.0,0.00028888,2]
[313911472,1707813052449,-300.0,0.00028888,2]
[313911473,1707813052458,-300.0,0.00028888,2]
[313911474,1707813052468,-300.0,0.00028888,2]
[313911475,1707813052478,-300.0,0.00028888,2]
[313911476,1707813052488,-300.0,0.00028888,2]
[313911477,1707813052498,-300.0,0.00028888,2]
[313911478,1707813052508,-818801.81718099,0.00028888,3]
[313911479,1707813052814,-12769.8271734,0.00028888,3]
[313911480,1707813052825,-1370.4472381,0.00028888,3]
[313911481,1707813052837,-977.00863997,0.00028888,3]
[313911482,1707813052850,-859.89671356,0.00028888,3]
[313911483,1707813052862,-10050.2900985,0.00028888,3]
[313911484,1707813052877,-606.39198877,0.00028888,3]
[313911485,1707813052888,-592.07027428,0.00028888,3]
[313911486,1707813052899,-905.05172536,0.00028888,3]
[313911487,1707813052911,-251.01376598,0.00028888,3]
[313911488,1707813052934,-301.60400004,0.00028888,3]
[313911489,1707813052946,-1503.93433306,0.00028888,3]
[313911491,1707813066226,-250.27628,0.00026576,2]
[313911492,1707813066286,-136.41994014,0.00026576,2]
[313911493,1707813066295,-532.99833579,0.00028779,2]
[313911518,1707813597046,154.29,0.0001,2]
[313911519,1707813597074,654.03848281,0.0001,2]
[313911520,1707813978310,532.36,0.00028,100]
[313911521,1707813978548,10000.0,0.000282,120]
[313911522,1707814004508,10000.0,0.000282,120]
[313911523,1707814114363,205.0,0.00022645,2]
[313911531,1707814190004,-2319.63023705,0.0002363,2]
[313911532,1707814190027,-375.90053585,0.00023631,2]
[313911533,1707814190051,-302.97404261,0.00023631,2]
[313911560,1707814231704,-156.51952196,0.000239,2]
[313911561,1707814231713,-518.01679133,0.00024146,2]
[313911562,1707814231723,-1006.98,0.00024147,2]
[313911563,1707814231733,-205.0,0.00024269,4]
[313911564,1707814231742,-156.51952191,0.00024715,2]
[313911565,1707814231752,-350.0,0.00025,3]
[313911566,1707814231761,-156.51952191,0.0002553,2]
[313911567,1707814231771,-205.0,0.00025893,7]
[313911568,1707814231780,-171.78,0.00025949,2]
[313911569,1707814231790,-800.0,0.00025998,2]
[313911570,1707814231800,-520.0,0.00026014,2]
[313911571,1707814231809,-500.0,0.00026025,2]
[313911572,1707814231819,-268.33,0.00026034,2]
[313911573,1707814231828,-500.0,0.00026034,2]
[313911574,1707814231838,-250.0,0.00026055,2]
[313911575,1707814231848,-150.0,0.00026134,2]
[313911576,1707814231857,-150.0,0.00026134,2]
[313911577,1707814231867,-797.83499014,0.00026134,20]
[313911578,1707814231879,-848.11059987,0.00026134,20]
[313911579,1707814231892,-110.05440999,0.00026134,20]
[313911580,1707814231901,-1014.48380779,0.00026135,2]
[313911581,1707814231918,-129.74619221,0.00026135,2]
[313911582,1707814231927,-1010.46,0.00026136,2]
[313911583,1707814231937,-177.27,0.00026149,2]
[313911584,1707814231947,-11.69136008,0.00026161,2]
[313911585,1707814231973,-146.41863992,0.00026161,2]
[313911586,1707814231982,-1083.92490425,0.00026224,2]
[313911587,1707814231994,-666.83093649,0.00026224,2]
[313911588,1707814232006,-10029.0,0.00026224,2]
[313911593,1707814232101,-11253.65120973,0.00026224,2]
[313911594,1707814232113,-866.59294953,0.00026224,2]
[313911596,1707814232125,-127.20359345,0.00026331,2]
[313911612,1707814237675,-1872.79640655,0.00026331,2]
[313911613,1707814237685,-250.0,0.00026339,2]
[313911614,1707814237695,-156.51952191,0.00026345,2]
[313911615,1707814237704,-1006.98,0.00026411,2]
[313911616,1707814237713,-159.44986088,0.00026575,2]
[313911617,1707814237722,-2285.88,0.00026626,2]
[313911618,1707814237731,-177.27,0.00026697,2]
[313911619,1707814237741,-480.0,0.00026707,2]
[313911620,1707814237751,-156.83,0.00026751,2]
[313911621,1707814237760,-400.0,0.00027,3]
[313911622,1707814237770,-156.51952191,0.00027159,2]
[313911623,1707814237779,-177.27,0.00027245,2]
[313911624,1707814237789,-262.02670797,0.00027295,3]
[313911625,1707814237798,-985.91,0.00027323,2]
[313911626,1707814237807,-499.99,0.00027484,2]
[313911627,1707814237817,-205.0,0.00027518,9]
[313911628,1707814237826,-158.11,0.00027525,2]
[313911629,1707814237836,-504.85247061,0.00027767,2]
[313911630,1707814237845,-516.56020792,0.00027767,7]
[313911631,1707814237854,-155.0,0.00027788,2]
[313911632,1707814237863,-177.27,0.00027793,2]
[313911633,1707814237873,-2500.0,0.00027813,2]
[313911634,1707814237883,-3535.1159,0.00027813,2]
[313911635,1707814237891,-25629.27210225,0.00027813,2]
[313911636,1707814237916,-6697.8236926,0.00027813,2]
[313911637,1707814237935,-62889.13133638,0.00027813,2]
[313911638,1707814237947,-423.356324,0.00027813,2]
[313911639,1707814237963,-1659.33008765,0.00027813,2]
[313911640,1707814237975,-7709.35035712,0.00027813,2]
[313911641,1707814237985,-4308.47449688,0.00027838,2]
[313911642,1707814237994,-1684.43555605,0.00027838,2]
[313911643,1707814238003,-150.60817484,0.00027889,2]
[313911644,1707814238013,-510.01723771,0.00027897,2]
[313911645,1707814238023,-409.3626796,0.00027912,2]
[313911646,1707814238032,-156.51952191,0.00027974,2]
[313911647,1707814238041,-171.30678346,0.00027987,2]
[313911648,1707814238050,-375.90053585,0.00027995,2]
[313911649,1707814238059,-302.71691711,0.00027995,2]
[313911650,1707814238068,-523.46161211,0.00027996,2]
[313911651,1707814238077,-1942.6002,0.00027997,2]
[313911652,1707814238086,-875.6893,0.00027997,2]
[313911653,1707814238095,-4666.38547649,0.00027997,2]
[313911654,1707814238107,-2022.67279831,0.00027997,2]
[313911655,1707814238118,-20717.08133818,0.00027997,2]
[313911656,1707814238129,-7928.93018408,0.00027997,2]
[313911666,1707814238252,-609.47680672,0.00027997,2]
[313911776,1707814240369,-502.03,0.00027997,2]
[313911777,1707814240381,-1153.23120345,0.00027997,2]
[313911778,1707814240529,-5020.25607134,0.00027997,2]
[313911779,1707814240541,-7897.38640109,0.00027997,2]
[313911780,1707814240589,-299625.48172792,0.00027997,2]
[313911781,1707814240601,-865.44923091,0.00027997,2]
[313911782,1707814240612,-428.1062567,0.00027997,2]
[313911783,1707814240624,-2925.98626232,0.00027997,2]
[313911784,1707814240648,-544.13000421,0.00027997,2]
[313911785,1707814240659,-763.04314098,0.00027997,2]
[313911786,1707814241289,-89086.20512621,0.00027997,2]
[313911802,1707814242777,-5017.62314254,0.00027997,2]
[313911803,1707814242886,-6992.44712729,0.00027997,2]
[313911804,1707814242898,-2005.77526688,0.00027997,2]
[313911805,1707814243012,-13468.81371338,0.00027997,2]
[313911806,1707814243066,-11935.45254028,0.00027997,2]
[313911807,1707814243079,-963.94554751,0.00027997,2]
[313911808,1707814243091,-3915.1351933,0.00027997,2]
[313911835,1707814245870,-155762.26289447,0.00027997,2]
[313911836,1707814245883,-17993.92994555,0.00027997,2]
[313911837,1707814245903,-438.97155858,0.00027997,2]
[313911838,1707814245959,-4336.78420896,0.00027997,2]
[313911839,1707814246018,-2660.49999999,0.00027997,2]
[313911840,1707814246076,-258.90026698,0.00027997,2]
[313911845,1707814286501,1534.02063745,0.00018,2]
[313911847,1707814295416,1330.96739761,0.0002,2]
[313911848,1707814433400,14136.50714943,0.00023,2]
[313911849,1707814433424,39770.96209672,0.00023,2]
[313911850,1707814447618,268.10712269,0.0002,2]
[313911853,1707814463611,220.78166859,0.0002,2]
[313911856,1707814629973,183.33,0.0002687,120]
[313911922,1707815382710,-155.0,0.00024151,2]
[313911923,1707815382730,-1066.76028514,0.00024152,2]
[313911924,1707815382750,-375.90053585,0.00024153,2]
[313911925,1707815382772,-156.2884166,0.00024153,2]
[313911926,1707815382794,-176.13371295,0.00024154,2]
[313911927,1707815382814,-981.61370118,0.00024255,2]
[313911928,1707815382835,-1015.44,0.00024259,2]
[313911929,1707815382857,-570.11198888,0.00024918,2]
[313911930,1707815403209,-177.27,0.00025699,2]
[313911933,1707815412223,-155.0,0.00026035,2]
[313911934,1707815412442,-497.89,0.00026088,2]
[313911935,1707815412465,-205.0,0.00026142,2]
[313911936,1707815412485,-499.99,0.00026142,2]
[313911937,1707815412508,-2676.7,0.00026217,2]
[313911938,1707815412530,-150.0,0.00026234,2]
[313911939,1707815412552,-842.05,0.00026235,2]
[313911940,1707815412572,-3337.43,0.00026235,2]
[313911941,1707815412591,-3226.96,0.00026235,2]
[313911942,1707815412611,-177.27,0.00026247,2]
[313911943,1707815412631,-1113.29,0.00026247,2]
[313911944,1707815412651,-309.42,0.00026247,2]
[313911945,1707815412673,-225.14,0.00026252,2]
[313911946,1707815412693,-250.0,0.00026252,2]
[313911947,1707815412715,-416.0,0.00026276,2]
[313911948,1707815412740,-171.78,0.000263,2]
[313911949,1707815412762,-250.0,0.000263,2]
[313911950,1707815412785,-250.0,0.00026363,2]
[313911951,1707815412805,-688.54,0.00026414,2]
[313911952,1707815412828,-23900.0,0.00026415,2]
[313911953,1707815412851,-156.01,0.00026449,2]
[313911954,1707815412875,-265.0113594,0.00026468,2]
[313911963,1707815431851,-1015.44,0.00026523,2]
[313911965,1707815431861,-193.27,0.00026639,2]
[313911967,1707815431872,-205.77768806,0.00026795,2]
[313911968,1707815431882,-1000.0,0.00026874,2]
[313911969,1707815431892,-821.59,0.00026875,2]
[313911970,1707815431901,-3186.57,0.00026875,2]
[313911971,1707815431911,-156.83,0.00026905,2]
[313911972,1707815431921,-584.0,0.0002693,2]
[313911973,1707815431932,-164.15,0.00026978,2]
[313911974,1707815431943,-166.21,0.00027067,2]
[313911975,1707815431952,-223.27572046,0.00027295,3]
[313911976,1707815431963,-1000.0,0.00027295,3]
[313911977,1707815431973,-1128.07205728,0.00027295,3]
[313911978,1707815431983,-395.89372062,0.000275,6]
[313911979,1707815431992,-2738.0,0.000275,2]
[313911980,1707815432001,-163.62,0.00027522,2]
[313911981,1707815432011,-654.5201,0.00027613,2]
[313911982,1707815432020,-2500.0,0.00027613,2]
[313911983,1707815432029,-1515.99200049,0.00027632,2]
[313911984,1707815432038,-1275.89730128,0.00027633,2]
[313911985,1707815432047,-290.55729572,0.00027636,2]
[313911986,1707815432057,-290.55729572,0.00027636,2]
[313911987,1707815432066,-290.55729572,0.00027636,2]
[313911988,1707815432075,-290.55729572,0.00027636,2]
[313911989,1707815432085,-290.55729572,0.00027636,2]
[313911990,1707815432094,-290.55729572,0.00027636,2]
[313911991,1707815432104,-290.55729572,0.00027636,2]
[313911992,1707815432114,-290.55729572,0.00027636,2]
[313911993,1707815432123,-290.55729572,0.00027636,2]
[313911994,1707815432133,-290.55729572,0.00027636,2]
[313911995,1707815432143,-290.55729572,0.00027636,2]
[313911996,1707815432152,-290.55729572,0.00027636,2]
[313911997,1707815432162,-290.55729572,0.00027636,2]
[313911998,1707815432171,-290.55729572,0.00027636,2]
[313911999,1707815432180,-290.55729572,0.00027636,2]
[313912000,1707815432190,-290.55729572,0.00027636,2]
[313912001,1707815432199,-290.55729572,0.00027636,2]
[313912002,1707815432209,-290.55729572,0.00027636,2]
[313912003,1707815432218,-290.55729572,0.00027636,2]
[313912004,1707815432227,-290.55729572,0.00027636,2]
[313912005,1707815432237,-290.55729572,0.00027636,2]
[313912008,1707815432246,-290.55729572,0.00027636,2]
[313912011,1707815432255,-290.55729572,0.00027636,2]
[313912014,1707815432264,-290.55729572,0.00027636,2]
[313912016,1707815432274,-290.55729572,0.00027636,2]
[313912019,1707815432284,-290.55729572,0.00027636,2]
[313912022,1707815432293,-290.55729572,0.00027636,2]
[313912024,1707815432302,-290.55729572,0.00027636,2]
[313912026,1707815432311,-290.55729572,0.00027636,2]
[313912028,1707815432321,-290.55729572,0.00027636,2]
[313912030,1707815432330,-290.55729572,0.00027636,2]
[313912032,1707815432340,-290.55729572,0.00027636,2]
[313912034,1707815432350,-290.55729572,0.00027636,2]
[313912037,1707815432360,-290.55729572,0.00027636,2]
[313912038,1707815432369,-290.55729572,0.00027636,2]
[313912040,1707815432379,-2497.139,0.00027636,4]
[313912042,1707815432388,-2497.139,0.00027636,4]
[313912044,1707815432398,-2497.139,0.00027636,4]
[313912046,1707815432407,-2497.139,0.00027636,4]
[313912048,1707815432416,-2497.14,0.00027636,4]
[313912051,1707815432426,-3877.62704721,0.00027667,2]
[313912053,1707815432435,-443.50515811,0.0002768,2]
[313912054,1707815432444,-3335.93908573,0.00027682,2]
[313912056,1707815432454,-731.27,0.00027685,2]
[313912058,1707815432463,-138.27780386,0.00027708,2]
[313912060,1707815432480,-1137.61949742,0.00027708,2]
[313912061,1707815432490,-4659.65449296,0.00027711,2]
[313912062,1707815432500,-156.2884166,0.00027711,2]
[313912063,1707815432510,-187.20122695,0.00027711,2]
[313912064,1707815432519,-1069.37128004,0.00027711,2]
[313912065,1707815432529,-375.09756048,0.00027711,2]
[313912066,1707815432538,-1844.41703312,0.00027712,2]
[313912067,1707815432558,-1255.2555,0.00027712,2]
[313912068,1707815432570,-1000.0,0.00027712,2]
[313912069,1707815432590,-625.735,0.00027712,2]
[313912077,1707815437955,-2429.72454503,0.00027712,2]
[313912298,1707815440528,-12102.26585121,0.00027712,2]
[313912300,1707815440537,-2449.3396,0.00027713,2]
[313912302,1707815440547,-61344.07697973,0.00027713,2]
[313912305,1707815440558,-308.33112527,0.00027713,2]
[313912381,1707815441289,-42154.641495,0.00027713,2]
[313912383,1707815441298,-155.0,0.00027767,2]
[313912385,1707815441307,-8046.8808,0.00027797,2]
[313912387,1707815441316,-806.9855,0.00027797,2]
[313912389,1707815441326,-1224.16698493,0.00027797,3]
[313912391,1707815441335,-89846.76556634,0.000278,2]
[313912397,1707815441454,-457.00220362,0.000278,2]
[313912399,1707815441466,-277.24778743,0.000278,2]
[313912401,1707815441478,-13104.99999997,0.000278,2]
[313912404,1707815441490,-31332.50000003,0.000278,2]
[313912425,1707815442992,-3946.81156972,0.000278,2]
[313912426,1707815443046,-3915.39565918,0.000278,2]
[313912427,1707815443108,-6714.28513764,0.000278,2]
[313912428,1707815443121,-12111.58667756,0.000278,2]
[313912429,1707815443159,-24118.90218078,0.000278,2]
[313912430,1707815443170,-2457.09624937,0.000278,2]
[313912431,1707815443182,-1321.86465,0.000278,2]
[313912445,1707815445868,-156.2884166,0.00027711,2]
[313912447,1707815445878,-336.46419665,0.000278,2]
[313912449,1707815445891,-3094.17959164,0.000278,2]
[313912455,1707815445931,-509.26421481,0.000278,2]
[313912457,1707815445944,-763.70530403,0.000278,2]
[313912459,1707815445956,-4488.47582129,0.000278,2]
[313912460,1707815445967,-3316.01377146,0.000278,2]
[313912461,1707815445978,-3302.68931943,0.000278,2]
[313912462,1707815446020,-22385.96788618,0.000278,2]
[313912463,1707815446033,-9523.90984899,0.000278,2]
[313912464,1707815446045,-2921.93229099,0.000278,2]
[313912465,1707815446061,-2708.879999,0.000278,2]
[313912466,1707815446073,-560.74260038,0.000278,2]
[313912467,1707815446089,-557.41806927,0.000278,2]
[313912468,1707815446113,-591.72647706,0.000278,2]
[313912469,1707815446125,-333.70314074,0.000278,2]
[313912470,1707815446170,-2666.50000001,0.000278,2]
[313912476,1707815497870,2957.25,2.8e-06,7]
[313912477,1707815504972,1500.0,2.8e-06,7]
[313912478,1707815558090,10000.0,2.8e-06,60]
[313912479,1707815558115,1188.63,2.8e-06,60]
[313912480,1707816244241,204.0,0.00023142,2]
[313912538,1707816632084,-155.0,0.00023585,2]
[313912539,1707816632094,-155.0,0.00023586,2]
[313912540,1707816632104,-442.73246,0.00023586,2]
[313912542,1707816632135,-183.71691518,0.00023586,2]
[313912543,1707816632145,-966.97471168,0.00023586,2]
[313912544,1707816632157,-582.25225483,0.00023586,2]
[313912545,1707816632189,-1032.05682951,0.00023586,2]
[313912546,1707816632301,-4853.60155131,0.00023586,2]
[313912547,1707816632314,-3046.55117717,0.00023587,2]
[313912548,1707816632324,-1056.34011043,0.00023587,2]
[313912549,1707816632334,-150.0,0.00023588,2]
[313912550,1707816632344,-1210.28009303,0.00023588,2]
[313912551,1707816632354,-963.80396653,0.00023589,2]
[313912553,1707816632364,-156.2884166,0.00023591,2]
[313912554,1707816632374,-156.2884166,0.00023591,2]
[313912555,1707816632383,-2287.04093485,0.00023593,2]
[313912558,1707816632425,-3750.50066848,0.00023593,2]
[313912559,1707816632435,-2963.12144756,0.00023603,2]
[313912560,1707816632448,-4448.62138191,0.00023603,2]
[313912575,1707816638098,-1537.63122258,0.00023603,2]
[313912577,1707816638111,-905.5321137,0.00023603,2]
[313912804,1707816641496,-27917.14577907,0.00023603,2]
[313912805,1707816641505,-152.32379956,0.00023612,2]
[313912806,1707816641516,-1032.02,0.00023714,2]
[313912807,1707816641526,-205.0,0.00023817,2]
[313912808,1707816641536,-20000.0,0.00024,2]
[313912809,1707816641546,-499.99,0.00024,2]
[313912810,1707816641555,-152.3237995,0.0002413,2]
[313912811,1707816641566,-152.3237995,0.00024647,2]
[313912812,1707816641577,-1000.0,0.00024823,2]
[313912813,1707816641587,-421.51903012,0.00024825,2]
[313912814,1707816641598,-3248.92,0.00024825,2]
[313912815,1707816641609,-350.0,0.00025,3]
[313912816,1707816641619,-225.14,0.00025136,2]
[313912817,1707816641628,-667.2,0.0002516,2]
[313912818,1707816641637,-152.3237995,0.00025165,2]
[313912819,1707816641646,-250.0,0.00025234,2]
[313912820,1707816641655,-178.26,0.00025336,2]
[313912821,1707816641664,-250.0,0.00025347,2]
[313912822,1707816641673,-23900.0,0.00025347,2]
[313912823,1707816641683,-2000.0,0.0002537,2]
[313912824,1707816641693,-2337.98,0.00025379,2]
[313912825,1707816641703,-154.31,0.00025476,2]
[313912826,1707816641712,-205.0,0.0002554,4]
[313912827,1707816641721,-701.7,0.00025635,2]
[313912828,1707816641731,-171.78,0.00025659,2]
[313912829,1707816641740,-332.8,0.00025682,2]
[313912831,1707816641749,-152.3237995,0.00025683,2]
[313912833,1707816641758,-166.21,0.00025688,2]
[313912835,1707816641769,-210.0,0.00025947,2]
[313912837,1707816641778,-1032.02,0.00025978,2]
[313912839,1707816641787,-152.3237995,0.00026201,2]
[313912841,1707816641796,-178.26,0.00026603,2]
[313912843,1707816641806,-424.14498857,0.00026699,5]
[313912845,1707816641815,-684.65,0.00026699,2]
[313912847,1707816641824,-152.3237995,0.00026718,2]
[313912849,1707816641833,-154.31,0.00026804,2]
[313912851,1707816641843,-400.0,0.00027,3]
[313912853,1707816641852,-2337.98,0.00027023,2]
[313912855,1707816641861,-152.3237995,0.00027236,2]
[313912857,1707816641870,-205.0,0.00027263,7]
[313912859,1707816641879,-1000.0,0.00027295,3]
[313912861,1707816641888,-266.98442672,0.00027295,3]
[313912863,1707816641897,-155.0,0.00027397,2]
[313912865,1707816641906,-200.62712996,0.000275,2]
[313912867,1707816641917,-5990.6508,0.000275,2]
[313912870,1707816641926,-252.5456,0.000275,2]
[313912871,1707816641936,-154.436,0.00027522,4]
[313912873,1707816641945,-154.436,0.00027522,4]
[313912875,1707816641954,-9851.93999599,0.00027569,2]
[313912878,1707816641963,-3547.60930624,0.00027597,2]
[313912879,1707816641972,-1364.39280045,0.00027599,2]
[313912882,1707816641982,-14362.0,0.000276,2]
[313912884,1707816641991,-248.36056311,0.00027616,2]
[313912886,1707816642000,-1423.56102804,0.0002765,2]
[313912887,1707816642010,-207.07192498,0.00027697,2]
[313912889,1707816642020,-531.91899672,0.00027697,2]
[313912891,1707816642030,-302.39758669,0.00027697,2]
[313912893,1707816642040,-160.69060215,0.00027698,2]
[313912896,1707816642049,-54349.9372,0.00027699,2]
[313912898,1707816642059,-15424.88397248,0.00027699,2]
[313912921,1707816643158,-84575.11602752,0.00027699,2]
[313912922,1707816643167,-38008.83673242,0.00027699,2]
[313912923,1707816643205,-5961.4424995,0.00027699,2]
[313912924,1707816643315,-23003.5090586,0.00027699,2]
[313912925,1707816643370,-178026.21170948,0.00027699,2]
[313912926,1707816643380,-167.1028077,0.000277,2]
[313912927,1707816643389,-152.3237995,0.00027754,2]
[313912928,1707816643399,-171.30678346,0.00027788,2]
[313912929,1707816643409,-1000.0,0.00027795,2]
[313912930,1707816643418,-19297.8117,0.00027795,2]
[313912931,1707816643428,-55401.1399575,0.00027798,2]
[313912932,1707816643438,-152730.91592069,0.000278,2]
[313912933,1707816643448,-12061.9534273,0.000278,2]
[313912934,1707816643458,-178.26,0.0002787,2]
[313912935,1707816643467,-421.37399013,0.00027881,2]
[313912936,1707816643478,-281.30437133,0.00027895,2]
[313912937,1707816643490,-1442.92706984,0.00027895,2]
[313912938,1707816643504,-155.897072,0.00027895,2]
[313912939,1707816643514,-156.13753826,0.00027895,2]
[313912940,1707816643525,-245.21688013,0.00027895,2]
[313912941,1707816643535,-8924.00612004,0.00027895,2]
[313912944,1707816643545,-344.10014908,0.00027895,2]
[313912946,1707816643554,-16801.9913264,0.00027895,2]
[313912948,1707816643564,-1172.69991877,0.00027895,2]
[313912950,1707816643573,-527.78345399,0.00027895,2]
[313912952,1707816643583,-264.97291684,0.00027895,2]
[313912954,1707816643593,-205.68236213,0.00027895,2]
[313912955,1707816643603,-191.64869268,0.00027895,2]
[313912956,1707816643613,-4593.90317992,0.00027895,2]
[313912957,1707816643622,-156.61191079,0.00027895,2]
[313912958,1707816643633,-163.09831068,0.00027895,2]
[313912959,1707816643643,-697.25548386,0.00027895,2]
[313912960,1707816643653,-2514.34633528,0.00027895,2]
[313912961,1707816643662,-184.30000773,0.00027895,2]
[313912962,1707816643672,-1060.31231856,0.00027895,2]
[313912963,1707816643681,-156.33124014,0.00027895,2]
[313912964,1707816643691,-155.92771036,0.00027895,2]
[313912965,1707816643701,-200.30232311,0.00027895,2]
[313912966,1707816643711,-175.46866221,0.00027895,2]
[313912967,1707816643721,-2686.70430794,0.00027895,2]
[313912968,1707816643731,-1191.54006023,0.00027895,2]
[313912969,1707816643741,-7311.51585721,0.00027895,2]
[313912970,1707816643750,-247.85885747,0.00027895,2]
[313912971,1707816643761,-1071.96370442,0.00027895,2]
[313912972,1707816643773,-984.24808758,0.00027895,2]
[313912973,1707816643783,-310.8901,0.00027895,2]
[313912974,1707816643793,-156.05777233,0.00027895,2]
[313912975,1707816643803,-156.28924394,0.00027895,2]
[313912976,1707816643812,-10551.2728412,0.00027895,2]
[313912977,1707816643822,-175.10730335,0.00027895,2]
[313912978,1707816643832,-946.96009888,0.00027895,2]
[313912979,1707816643842,-155.95487607,0.00027895,2]
[313912980,1707816643852,-4183.91180286,0.00027895,2]
[313912981,1707816643861,-12817.00046894,0.00027896,2]
[313912982,1707816643872,-9453.85573165,0.00027896,2]
[313912983,1707816643882,-153.49293748,0.000279,20]
[313912984,1707816643892,-177.27,0.000279,2]
[313912985,1707816643901,-516.82,0.000279,7]
[313912986,1707816643913,-732.65,0.00027995,2]
[313912987,1707816643922,-481.75208806,0.00027996,2]
[313912988,1707816643935,-716.68,0.00027997,2]
[313912989,1707816643945,-4006.31057612,0.00027998,2]
[313912990,1707816643955,-429.0771734,0.00027998,2]
[313912991,1707816643965,-381.72923343,0.00027998,2]
[313912992,1707816643975,-221.40677971,0.00027998,2]
[313912993,1707816643984,-5213.40299874,0.00027998,2]
[313912994,1707816643994,-156.83162422,0.00027998,2]
[313912995,1707816644003,-534.19210775,0.00027998,2]
[313912996,1707816644014,-181.53570048,0.00027998,2]
[313912997,1707816644024,-1809.040896,0.00027998,2]
[313912998,1707816644033,-249.77897445,0.00027998,2]
[313912999,1707816644043,-155.4328726,0.00027998,2]
[313913000,1707816644053,-5542.7476156,0.00027998,2]
[313913001,1707816644062,-1238.02667059,0.00027999,2]
[313913002,1707816644072,-1423.56102805,0.00027999,2]
[313913003,1707816644082,-506.1640488,0.00028,2]
[313913004,1707816644091,-256.33619966,0.00028,2]
[313913005,1707816644101,-150.1,0.00028,3]
[313913006,1707816644110,-2268.12660229,0.00028,2]
[313913007,1707816644119,-62897.56,0.00028,30]
[313913008,1707816644129,-914.76,0.0002805,2]
[313913009,1707816644140,-449.18,0.0002805,2]
[313913010,1707816644150,-404.98,0.0002805,2]
[313913011,1707816644160,-914.76,0.0002805,2]
[313913012,1707816644170,-404.98,0.0002805,2]
[313913013,1707816644180,-914.76,0.0002805,2]
[313913014,1707816644190,-914.76,0.0002805,2]
[313913015,1707816644200,-404.98,0.0002805,2]
[313913016,1707816644213,-404.98,0.0002805,2]
[313913017,1707816644223,-914.76,0.0002805,2]
[313913018,1707816644236,-914.76,0.0002805,2]
[313913019,1707816644246,-914.76,0.0002805,2]
[313913020,1707816644256,-914.76,0.0002805,2]
[313913021,1707816644267,-914.76,0.0002805,2]
[313913022,1707816644276,-914.76,0.0002805,2]
[313913023,1707816644285,-914.76,0.0002805,2]
[313913024,1707816644295,-914.76,0.0002805,2]
[313913025,1707816644304,-914.76,0.0002805,2]
[313913026,1707816644315,-153.12,0.0002805,2]
[313913027,1707816644326,-39272.68111127,0.0002819,2]
[313913028,1707816644672,-1055.01919356,0.0002819,2]
[313913029,1707816644682,-330.30085657,0.000282,120]
[313913030,1707816644695,-136.69914343,0.000282,120]
[313913031,1707816644704,-1000.0,0.000282,2]
[313913032,1707816644713,-586.27730812,0.00028242,2]
[313913033,1707816644725,-344.0669848,0.00028242,2]
[313913034,1707816646125,-362.84292556,0.00027698,2]
[313913035,1707816646181,-43.88654805,0.00027698,2]
[313913036,1707816646190,-3704.25641965,0.00027698,2]
[313913037,1707816646199,-215.79331107,0.00027698,2]
[313913038,1707816646221,-572.6870272,0.00027698,2]
[313913039,1707816646232,-101.67570708,0.00028242,2]
[313913040,1707816646245,-152.3237995,0.00028271,2]
[313913041,1707816646255,-200.0,0.0002828,3]
[313913042,1707816646266,-667.2,0.00028306,2]
[313913043,1707816646276,-3547.60930624,0.00028408,2]
[313913044,1707816646286,-1364.39280038,0.00028418,2]
[313913045,1707816646296,-167.0,0.00028466,2]
[313913046,1707816646306,-150.0,0.00028479,5]
[313913047,1707816646316,-27719.38508083,0.00028479,2]
[313913048,1707816646330,-904.64662748,0.00028479,2]
[313913049,1707816646347,-690.26328004,0.00028479,2]
[313913050,1707816646358,-1713.60714684,0.00028479,2]
[313913051,1707816646370,-276.90558802,0.00028479,2]
[313913052,1707816646386,-1803.29637677,0.00028479,2]
[313913053,1707816646409,-13708.36834254,0.00028479,2]
[313913054,1707816646421,-13025.27229843,0.00028479,2]
[313913055,1707816646433,-3017.77944775,0.00028479,2]
[313913056,1707816646447,-16595.73297718,0.00028479,2]